[Event "1st Chessable Sunway Formentera 2022"]
[Site "Formentera Punta Prima"]
[Date "2022.05.02"]
[Round "4"]
[White "Lever, Erwan"]
[Black "Buiza Prieto, Eihartze"]
[Result "1/2-1/2"]
[ECO "E90"]
[WhiteElo "2209"]
[BlackElo "2044"]
[Annotator "TA"]
[PlyCount "145"]
[EventDate "2022.05.05"]
[EventType "swiss"]
[EventCountry "ESP"]
[SourceTitle "playchess.com"]
[Source "ChessBase"]
[SourceQuality "1"]
[TimeControl "40/5400+30:1800+30"]

{[%evp 17,145,69,83,81,112,64,67,66,84,23,15,18,81,76,76,77,88,54,93,76,86,75,75,75,75,67,76,76,76,75,76,76,83,32,43,32,42,33,72,64,71,57,52,34,40,31,30,15,19,-8,3,0,0,-10,0,0,0,-65,-72,-72,-72,-80,-80,-70,-65,-166,-155,-226,-223,-221,-206,-216,-191,-178,-177,-172,-178,-233,-171,-174,-170,-167,-166,-183,-144,-157,-146,-137,-135,-93,-68,-83,-83,-83,-82,-84,-78,-149,-154,-186,-112,-102,-106,-200,-201,-202,-152,-125,0,-173,-38,-39,-33,-52,-33,-64,-40,-40,-22,-47,-25,-54,-22,-22,-2,-22,-22,-22,-22,-33]} 1. d4 {[%emt 0:00:04]} c5 {[%emt 0:03:34]} 2. d5 {[%emt 0:00:08]} Nf6 {[%emt 0:00:56]} 3. c4 {[%emt 0:00:08]} g6 {[%emt 0:00:16]} 4. Nc3 {[%emt 0:00:06]} Bg7 {[%emt 0:00:06]} 5. e4 {[%emt 0:00:04]} d6 {[%emt 0:00:09]} 6. h3 {[%emt 0:00:18]} O-O {[%emt 0:04:13]} 7. Nf3 {[%emt 0:00:06]} Na6 {[%emt 0:01:31]} 8. Bd3 {[%emt 0:00:19]} Nc7 {[%emt 0:03:57]} 9. O-O {[%emt 0:00:21]} a6 {[%emt 0:01:17][%cal Ob7b5]} 10. a4 {[%emt 0:00:06] E90: King's Indian: Classical: Early deviations and 6 h3.} e6 {[%emt 0:11:09]} 11. Bf4 {[%emt 0:01:41]} (11. a5 $16) 11... e5 {[%emt 0:01:23]} 12. Bg5 {[%emt 0:00:31] White is slightly better.} h6 {[%emt 0:00:46] [#]} 13. Bxf6 $146 {[%emt 0:04:15]} (13. Be3 $16) ({Predecessor:} 13. Be3 Kh8 14. a5 Ng8 15. b4 cxb4 16. Na4 f5 17. c5 fxe4 18. Bxe4 Bf5 19. Bxf5 gxf5 20. cxd6 {1-0 (43) Khomeriki,N (2315)-Chkhaidze,N (2333) Tbilisi 2019}) 13... Qxf6 $11 {[%emt 0:03:17]} 14. a5 {[%emt 0:00:05]} Bd7 {[%emt 0:02:57]} (14... Rb8 $1 $11) 15. Rb1 {[%emt 0:00:59]} Qd8 {[%emt 0:09:03]} 16. b4 {[%emt 0:01:23] Strongly threatening bxc5.} Ne8 {[%emt 0:01:14]} 17. bxc5 {[%emt 0:19:50]} dxc5 {[%emt 0:07:12]} 18. Rb6 {[%emt 0:02:09]} Qb8 {[%emt 0:04:39]} 19. Na4 {[%emt 0:08:32] 0x0.001d361fc54edp-1022s more active pieces. The black rooks are badly placed.} Qc7 {[%emt 0:04:17]} 20. Bc2 {[%emt 0:04:03] d6 is the strong threat.} Nd6 {[%emt 0:03:35]} 21. Qd3 {[%emt 0:07:15]} Rfd8 {[%emt 0:08:44]} 22. Rfb1 {[%emt 0:00:47]} Bxa4 {[%emt 0:00:47]} 23. Bxa4 {[%emt 0:00:09]} Ra7 {[%emt 0:00:31]} 24. Bc2 {[%emt 0:04:13]} Raa8 {[%emt 0:06:33]} 25. g4 {[%emt 0:00:45]} (25. g3 $16) 25... Qe7 {[%emt 0:00:27]} 26. Qe2 {[%emt 0:03:15]} Rac8 {[%emt 0:00:29]} 27. Bd3 {[%emt 0:02:52]} Rc7 {[%emt 0:00:54]} 28. Qe3 {[%emt 0:00:39]} Qf6 {[%emt 0:02:19]} 29. Ne1 {[%emt 0:01:58]} Qg5 {[%emt 0:00:19]} 30. Ng2 {[%emt 0:09:05]} Qxe3 {[%emt 0:01:53]} 31. Nxe3 {[%emt 0:00:01]} Bf6 {[%emt 0:00:21]} 32. Ng2 {[%emt 0:00:23]} Rcd7 {[%emt 0:02:39]} 33. h4 {[%emt 0:01:02]} Re8 {[%emt 0:00:16]} 34. R6b3 {[%emt 0:00:31]} Bd8 {[%emt 0:00:26]} 35. Ra1 {[%emt 0:00:05]} Kg7 {[%emt 0:00:45]} 36. f3 {[%emt 0:01:15]} Rf8 {[%emt 0:01:59]} 37. f4 {[%emt 0:09:26]} (37. Kf1 $11) 37... Re8 {[%emt 0:03:04]} 38. f5 {[%emt 0:01:43]} gxf5 {[%emt 0:03:21]} 39. gxf5 {[%emt 0:02:05]} Rg8 {[%emt 0:00:19]} 40. Kf2 {[%emt 0:00:00]} Kf8 {[%emt 0:00:00]} 41. Kf3 {[%emt 0:08:07] [#] Against Rg4} ({White should try} 41. h5 $1 $15) 41... f6 $1 $19 {[%emt 0:09:05]} 42. Ne1 {[%emt 0:08:39]} (42. Ne3 $17) 42... Rg1 {[%emt 0:06:17]} 43. Rba3 {[%emt 0:00:41]} Rdg7 {[%emt 0:00:15] Prevents Ng2.} 44. Ke3 {[%emt 0:00:13]} R1g3+ {[%emt 0:03:43]} 45. Nf3 {[%emt 0:00:11]} R7g4 {[%emt 0:00:14]} 46. h5 {[%emt 0:01:38]} Rh3 {[%emt 0:00:37] Against Rh1} 47. R3a2 {[%emt 0:01:47]} (47. Rf1 $142) 47... Rxh5 {[%emt 0:00:19] Hoping for ...Rf4.} 48. Rg1 {[%emt 0:00:27]} Rxg1 {[%emt 0:01:33]} 49. Nxg1 {[%emt 0:00:01]} Rh1 {[%emt 0:02:01]} 50. Nf3 {[%emt 0:00:56]} Kf7 {[%emt 0:00:10]} 51. Nd2 {[%emt 0:03:56]} Rh2 {[%emt 0:01:52]} 52. Ra1 {[%emt 0:00:04]} Rh3+ {[%emt 0:00:41]} 53. Ke2 {[%emt 0:00:08]} h5 {[%emt 0:01:16]} 54. Nb3 $1 {[%emt 0:00:20] [#]} Nxe4 $1 {[%emt 0:01:29]} 55. Bxe4 {[%emt 0:00:01]} Rxb3 $17 {[%emt 0:00:07][%mdl 4096] Endgame KRB-KRB} 56. d6 {[%emt 0:00:03]} Ke8 {[%emt 0:01:48]} 57. Bd5 {[%emt 0:09:12]} (57. Rh1 $142) 57... Kd7 {[%emt 0:00:14]} 58. Rd1 {[%emt 0:00:01]} Kxd6 {[%emt 0:00:37]} (58... Rb2+ $19 59. Ke3 Bxa5 60. Be6+ Kc6) 59. Bxb7+ {[%emt 0:00:04]} Ke7 {[%emt 0:00:18]} 60. Bxa6 {[%emt 0:00:04]} (60. Bc6 $17 {was called for.} Bxa5 61. Rd7+ Kf8 62. Bd5) 60... Bxa5 $19 {[%emt 0:00:15]} 61. Rh1 {[%emt 0:00:11]} Kd6 {[%emt 0:02:51] White must now prevent ...e4.} 62. Rd1+ {[%emt 0:00:57] [#]} Ke7 {[%emt 0:00:13]} (62... Kc7 $1 $17 63. Bb5 h4 64. Rd7+ Kc8) 63. Rh1 $1 {[%emt 0:00:01]} Kf7 {[%emt 0:05:05]} (63... Rb2+ $19 64. Kf3 Kd6 65. Rxh5 Rb3+ 66. Kg4 Rb1) 64. Rxh5 $15 {[%emt 0:00:07]} Kg7 {[%emt 0:00:01]} 65. Bb5 {[%emt 0:00:38]} Bb4 {[%emt 0:01:04]} 66. Be8 {[%emt 0:02:16]} Rc3 {[%emt 0:00:44]} 67. Rh4 {[%emt 0:02:19]} Kf8 {[%emt 0:02:38]} 68. Bb5 {[%emt 0:01:30]} Rg3 {[%emt 0:00:25]} 69. Rh7 {[%emt 0:01:01]} Rg5 {[%emt 0:01:07]} 70. Bd7 $1 {[%emt 0:00:35] The position is equal.} Rg7 {[%emt 0:00:45]} (70... Kg8 $5 {[%cal Rg8h7]} 71. Re7 Kf8 72. Re8+ Kf7 $11) 71. Rxg7 {[%emt 0:00:07]} Kxg7 {[%emt 0:00:01]} 72. Kf3 {[%emt 0:00:10]} Kh6 {[%emt 0:00:20]} 73. Ke4 {[%emt 0:00:08] Black had all chances to win.  Weighted Error Value: White=0.20 (precise) /Black=0.11 (very precise)} 1/2-1/2

[Event "1st Chessable Sunway Formentera 2022"]
[Site "Formentera Punta Prima"]
[Date "2022.05.02"]
[Round "4"]
[White "Galvan Cipriani, Viviana"]
[Black "Dukic, Zachary"]
[Result "0-1"]
[ECO "A11"]
[WhiteElo "2153"]
[BlackElo "2243"]
[Annotator "TA"]
[PlyCount "110"]
[EventDate "2022.05.05"]
[EventType "swiss"]
[EventCountry "ESP"]
[SourceTitle "playchess.com"]
[Source "ChessBase"]
[SourceQuality "1"]
[TimeControl "40/5400+30:1800+30"]

{[%evp 9,110,2,3,0,-7,-9,18,11,9,9,8,23,38,11,29,19,11,10,12,19,21,6,30,0,0,0,8,0,6,11,8,-32,-14,-18,-21,-31,0,0,-12,-31,-19,-23,-13,-53,-25,-20,-5,-44,24,-49,-44,-128,-138,-272,-147,-225,-139,-141,-148,-152,-152,-143,-119,-147,-146,-290,-232,-257,-259,-283,-229,-455,-428,-610,-610,-1029,-1012,-1012,-925,-979,-968,-930,-828,-739,-604,-735,-705,-1299,-1299,-1428,-1428,-29975,-29976,-29976,-29977,-29977,-29978,-29978,-29978,-29978,-29976,-29981,-29979]} 1. c4 {[%emt 0:10:41]} c6 {[%emt 0:00:09]} 2. Nf3 {[%emt 0:01:29]} d5 {[%emt 0:00:11]} 3. e3 {[%emt 0:05:37]} Nf6 {[%emt 0:00:10]} 4. Nc3 {[%emt 0:00:12]} a6 {[%emt 0:00:13]} 5. cxd5 {[%emt 0:00:38]} cxd5 {[%emt 0:00:11]} 6. d4 {[%emt 0:00:20] A11: English Opening: 1...c6.} e6 {[%emt 0:12:10]} 7. Bd3 {[%emt 0:04:28]} Nbd7 {[%emt 0:03:44]} 8. O-O {[%emt 0:04:31] The position is equal.} Bd6 {[%emt 0:00:11]} 9. e4 {[%emt 0:08:16]} dxe4 {[%emt 0:00:12]} 10. Nxe4 {[%emt 0:00:08]} Be7 {[%emt 0:08:04]} 11. Bf4 {[%emt 0:03:18] [#]} O-O $146 {[%emt 0:02:27]} ({Predecessor:} 11... Nxe4 12. Bxe4 Nf6 13. Bc2 O-O 14. Qd3 g6 15. a3 Nd5 16. Bh6 Re8 17. Ne5 Bf8 18. Bxf8 Rxf8 {1-0 (53) Garcia Riera,J (2019)-Elias Arguelles,M (1665) Barcelona 2015}) 12. Rc1 {[%emt 0:07:52] Black must now prevent Bc7.} Nd5 {[%emt 0:01:23] Against Bc7} 13. Bg3 {[%emt 0:08:10]} N7f6 {[%emt 0:15:34]} 14. Ne5 {[%emt 0:08:07]} Nxe4 {[%emt 0:23:42]} 15. Bxe4 {[%emt 0:01:08]} Bf6 {[%emt 0:10:42]} 16. Ng4 {[%emt 0:05:32]} Bg5 {[%emt 0:00:53]} 17. f4 {[%emt 0:00:52]} Be7 {[%emt 0:02:10]} 18. Re1 {[%emt 0:12:04]} Nf6 {[%emt 0:02:15]} 19. Nxf6+ {[%emt 0:03:00]} Bxf6 {[%emt 0:00:04]} 20. Rc4 {[%emt 0:01:47]} Bd7 {[%emt 0:03:55]} 21. Bf2 {[%emt 0:02:14]} Rc8 {[%emt 0:02:20]} 22. b3 {[%emt 0:00:24]} Rxc4 {[%emt 0:03:24]} 23. bxc4 {[%emt 0:00:05]} Qc7 {[%emt 0:00:07]} 24. Qb1 {[%emt 0:00:45]} Qxc4 {[%emt 0:00:50]} 25. Rc1 {[%emt 0:03:36]} Qa4 {[%emt 0:01:38]} 26. Bxh7+ {[%emt 0:00:17]} Kh8 {[%emt 0:00:01]} 27. Bc2 {[%emt 0:00:52]} Qa3 {[%emt 0:00:41]} 28. Rd1 {[%emt 0:00:24]} g6 {[%emt 0:02:44]} (28... Rc8 $15) 29. Rd3 {[%emt 0:05:28]} (29. Qxb7 $11 Qxa2 30. Bxg6 $1) 29... Qd6 {[%emt 0:00:04]} 30. Rh3+ {[%emt 0:01:07]} ({White should play} 30. Qxb7 $15 Bc6 31. Qxa6) 30... Kg7 $17 {[%emt 0:00:01]} 31. Qxb7 {[%emt 0:01:48] [#]} (31. Rg3 $17) 31... Qxf4 {[%emt 0:01:51]} ({Black should try} 31... Rc8 $1 $19 {[%cal Rc8c2]} 32. Qb1 (32. Qe4 $2 Qc6 $19) 32... Bxd4) 32. Qf3 {[%emt 0:00:17]} (32. Be3 $17 Bxd4 33. Qf3) 32... Qc1+ {[%emt 0:00:26]} 33. Qd1 {[%emt 0:00:04]} Qxd1+ {[%emt 0:00:42]} 34. Bxd1 {[%emt 0:00:05]} Rc8 {[%emt 0:00:00] Inhibits Rc3. Hoping for ...Rc1.} 35. Be3 {[%emt 0:00:51] Prevents Rc1.} Bc6 {[%emt 0:02:46]} 36. Be2 {[%emt 0:01:12]} a5 {[%emt 0:00:25]} 37. Rg3 {[%emt 0:00:15]} (37. g4 $17) 37... Bd5 {[%emt 0:00:25]} 38. a3 {[%emt 0:00:50]} Rc3 {[%emt 0:00:57][%cal Oc3e3] Threatens to win with ...Rxe3!} 39. Kf1 {[%emt 0:00:13][%cal Oe3h6]} Rc2 {[%emt 0:00:45]} ({Weaker is} 39... Rxa3 {[#]} 40. Bh6+ $1 Kxh6 41. Rxa3 $14) 40. Bd1 $2 {[%emt 0:01:10]} (40. Bf4 {was worth a try.}) 40... Ra2 $19 {[%emt 0:00:45]} 41. Bf2 (41. Bg5 $142 Bxd4 42. Bb3 Rxa3 43. Rg4) 41... Bh4 42. Rxg6+ Kxg6 43. Bxh4 Bxg2+ {[%mdl 4096] Endgame KRB-KB} 44. Ke1 Rxa3 45. Be7 Ra1 {aiming for ...Bf3.} 46. Kd2 Bh3 {And now ...a4 would win.} 47. Bd6 a4 {[%cal Ba5a4,Ba4a3][%mdl 32]} 48. Bf3 a3 49. Be4+ Bf5 {( -> ...a2)} 50. Bxf5+ Kxf5 {KR-KB. Black mates.} 51. Kc2 {[#]} Rd1 $3 {[%mdl 512]} 52. Bxa3 Rxd4 53. Be7 f6 54. Kc3 Rh4 55. Bd6 e5 {Weighted Error Value: White=0.65/Black=0.17 (very precise)} 0-1

[Event "1st Chessable Sunway Formentera 2022"]
[Site "Formentera Punta Prima"]
[Date "2022.05.03"]
[Round "5"]
[White "Sargsyan, Shant"]
[Black "Garcia Martin, Marta"]
[Result "1-0"]
[ECO "C91"]
[WhiteElo "2641"]
[BlackElo "2326"]
[Annotator "TA"]
[PlyCount "61"]
[EventDate "2022.05.05"]
[EventType "swiss"]
[EventCountry "ESP"]
[SourceTitle "playchess.com"]
[Source "ChessBase"]
[SourceQuality "1"]
[TimeControl "40/5400+30:1800+30"]

{[%evp 28,61,10,5,9,13,13,17,15,4,18,-10,8,-24,0,0,0,0,0,0,20,14,35,20,29,32,76,79,109,114,155,162,784,771,29990,29991]} 1. e4 {[%emt 0:00:07]} e5 {[%emt 0:09:32]} 2. Nf3 {[%emt 0:01:11]} Nc6 {[%emt 0:00:09]} 3. Bb5 {[%emt 0:00:08]} a6 {[%emt 0:00:17]} 4. Ba4 {[%emt 0:00:08]} Nf6 {[%emt 0:00:06]} 5. O-O {[%emt 0:00:26]} Be7 {[%emt 0:00:07]} 6. Re1 {[%emt 0:00:31]} b5 {[%emt 0:00:10]} 7. Bb3 {[%emt 0:00:09]} d6 {[%emt 0:00:16]} 8. c3 {[%emt 0:00:10]} O-O {[%emt 0:00:08]} 9. d4 {[%emt 0:00:15]} Bg4 {[%emt 0:01:28]} 10. Be3 {[%emt 0:00:18]} exd4 {[%emt 0:07:55]} 11. cxd4 {[%emt 0:00:15]} d5 {[%emt 0:00:05]} 12. e5 {[%emt 0:00:47]} Ne4 {[%emt 0:00:07]} 13. Nc3 {[%emt 0:01:26]} Nxc3 {[%emt 0:00:15]} 14. bxc3 {[%emt 0:00:05]} Na5 {[%emt 0:00:39]} 15. Bc2 {[%emt 0:01:04]} Nc4 {[%emt 0:09:15] C91: Closed Ruy Lopez: 7...d6 8 c3 0-0 9 d4.} 16. Qd3 {[%emt 0:06:29][%csl Gc2][%cal Rd3h7] [#]} g6 {[%emt 0:01:06]} 17. Bh6 {[%emt 0:00:24]} Re8 {[%emt 0:00:10] The position is equal.} 18. h3 {[%emt 0:01:29]} Be6 {[%emt 0:11:52]} 19. g4 {[%emt 0:12:10]} a5 {[%emt 0:09:43] [#]} 20. Kg2 $146 {[%emt 0:05:00]} ({Predecessor:} 20. Nh2 Bg5 21. Bxg5 Qxg5 22. Qg3 Qd2 23. Rac1 b4 24. Nf3 Qh6 25. h4 bxc3 26. Ba4 {1-0 (36) Nisipeanu,L (2675)-Kurnosov,I (2602) Budva 2009}) 20... b4 {[%emt 0:03:57]} 21. cxb4 {[%emt 0:03:29]} axb4 {[%emt 0:00:12]} 22. Bb3 {[%emt 0:00:08]} c6 {[%emt 0:10:57]} 23. Rac1 {[%emt 0:01:15]} Na5 {[%emt 0:09:51]} 24. Qe3 {[%emt 0:01:44]} Qd7 {[%emt 0:02:36]} 25. Qf4 {[%emt 0:01:40]} Nxb3 {[%emt 0:07:41]} 26. axb3 {[%emt 0:00:06]} Ra3 {[%emt 0:00:17] [#]} 27. Re3 $1 {[%emt 0:01:18]} Rea8 {[%emt 0:12:42]} 28. Ng5 {[%emt 0:12:09][%cal Bf3g5,Bg5e6,Be6d8][%mdl 32]} Bd8 {[%emt 0:01:02]} 29. Rf3 {[%emt 0:05:55] White is much more active.} Ra1 $2 {[%emt 0:01:10]} (29... R3a7 30. Nxe6 Qxe6) 30. Nxe6 $18 {[%emt 0:01:32]} Rxc1 {[%emt 0:01:05]} 31. Nxd8 {[%emt 0:00:19] Weighted Error Value: White=0.06 (flawless) /Black=0.58} 1-0

[Event "1st Chessable Sunway Formentera 2022"]
[Site "Formentera Punta Prima"]
[Date "2022.05.03"]
[Round "5"]
[White "Santos Ruiz, Miguel"]
[Black "Sasikiran, Krishnan"]
[Result "1/2-1/2"]
[ECO "D12"]
[WhiteElo "2586"]
[BlackElo "2651"]
[Annotator "TA"]
[PlyCount "42"]
[EventDate "2022.05.05"]
[EventType "swiss"]
[EventCountry "ESP"]
[SourceTitle "playchess.com"]
[Source "ChessBase"]
[SourceQuality "1"]
[TimeControl "40/5400+30:1800+30"]

{[%evp 12,42,44,42,39,7,0,0,10,0,33,14,36,34,42,41,25,28,37,16,17,6,14,0,0,0,0,0,0,0,0,0,0]} 1. d4 {[%emt 0:00:40]} d5 {[%emt 0:00:41]} 2. c4 {[%emt 0:00:08]} c6 {[%emt 0:00:14]} 3. Nf3 {[%emt 0:00:11]} Nf6 {[%emt 0:00:09]} 4. e3 {[%emt 0:00:13]} Bf5 {[%emt 0:01:36]} 5. Nc3 {[%emt 0:00:19]} e6 {[%emt 0:00:15]} 6. Nh4 {[%emt 0:00:07]} Be4 {[%emt 0:00:22]} 7. f3 {[%emt 0:02:06]} Bg6 {[%emt 0:00:14] D12: Slav Defence: 3 Nf3 Nf6 4 e3 Bf5.} 8. Bd2 {[%emt 0:01:04]} dxc4 {[%emt 0:12:41]} 9. Nxg6 {[%emt 0:05:00]} hxg6 {[%emt 0:00:43]} 10. Bxc4 {[%emt 0:00:13]} Nbd7 {[%emt 0:13:37]} (10... a6 $5 {[%cal Rc6c5]}) 11. f4 {[%emt 0:18:27] [#]} Bb4 $146 {[%emt 0:13:18]} ({Predecessor:} 11... b5 12. Bd3 a6 13. a4 b4 14. Ne4 Be7 15. Rc1 Qb6 16. Qc2 Rc8 17. Nc5 Nxc5 18. dxc5 {0-1 (42) Konnyu,J (2366)-Czebe,A (2479) Budapest 2010}) 12. Qf3 {[%emt 0:06:49]} Rc8 {[%emt 0:12:30]} 13. a3 {[%emt 0:07:14]} Bxc3 {[%emt 0:03:34]} 14. bxc3 {[%emt 0:05:54]} c5 {[%emt 0:00:15] [#] Threatens to win with ...cxd4.} 15. Bd3 {[%emt 0:03:54]} O-O {[%emt 0:03:03] The position is equal.} 16. O-O {[%emt 0:03:13]} e5 {[%emt 0:04:36]} 17. fxe5 {[%emt 0:15:57]} (17. Rad1 {looks sharper.} cxd4 18. cxd4 exd4 19. exd4 Re8 20. Kh1) 17... Nxe5 {[%emt 0:00:48]} 18. dxe5 {[%emt 0:00:16]} Qxd3 {[%emt 0:00:06]} 19. exf6 {[%emt 0:00:02]} Qxd2 {[%emt 0:00:13]} 20. fxg7 {[%emt 0:00:06]} Kxg7 {[%emt 0:00:12]} 21. Rad1 {[%emt 0:00:26]} Qxc3 {[%emt 0:01:58] Weighted Error Value: White=0.08 (flawless) /Black=0.07 (flawless)} 1/2-1/2

[Event "1st Chessable Sunway Formentera 2022"]
[Site "Formentera Punta Prima"]
[Date "2022.05.03"]
[Round "5"]
[White "Cuenca Jimenez, Jose Fernando"]
[Black "Jarmula, Lukasz"]
[Result "1-0"]
[ECO "D26"]
[WhiteElo "2551"]
[BlackElo "2459"]
[Annotator "TA"]
[PlyCount "129"]
[EventDate "2022.05.05"]
[EventType "swiss"]
[EventCountry "ESP"]
[SourceTitle "playchess.com"]
[Source "ChessBase"]
[SourceQuality "1"]
[TimeControl "40/5400+30:1800+30"]

{[%evp 11,129,23,22,18,14,3,12,28,17,0,73,15,45,30,64,23,33,41,42,0,0,-8,48,0,0,0,18,10,15,13,7,-66,-70,-77,-82,-132,-131,-155,-132,-140,-140,-166,-129,-179,-80,-152,-78,-89,-91,-88,-32,-16,-16,-26,-28,-33,0,0,0,-74,0,-50,0,-14,-8,-8,-8,-8,0,0,-8,-8,-8,-7,-2,-27,-11,-11,0,0,0,0,118,119,119,119,119,119,119,119,172,8,8,8,8,8,291,8,456,429,847,435,433,400,396,320,762,486,1483,1106,29971,29972,29968,12850,6330,3232,29984,29985,29984,29980]} 1. d4 {[%emt 0:00:03]} d5 {[%emt 0:03:01]} 2. c4 {[%emt 0:00:08]} dxc4 {[%emt 0:00:14]} 3. Nf3 {[%emt 0:00:17]} Nf6 {[%emt 0:00:09]} 4. e3 {[%emt 0:00:29]} e6 {[%emt 0:00:06]} 5. Bxc4 {[%emt 0:00:26]} c5 {[%emt 0:00:09]} 6. O-O {[%emt 0:00:44]} Nc6 {[%emt 0:00:06]} 7. Nc3 {[%emt 0:00:39] D26: Queen's Gambit Accepted: 4 e3 e6 5 Bxc5 c5 sidelines.} a6 {[%emt 0:00:21] 7...a6 is better than 7...cxd4.} 8. d5 {[%emt 0:00:08]} exd5 {[%emt 0:03:58]} 9. Nxd5 {[%emt 0:00:12][%cal Oe3e4] The position is equal.} Be7 {[%emt 0:01:10]} 10. e4 {[%emt 0:19:43] [#]} Bg4 $146 {[%emt 0:06:56]} (10... O-O $1 $11) ({Predecessor:} 10... O-O 11. Bf4 Bg4 12. Nxe7+ Qxe7 13. Bd6 Qxe4 14. Bd3 Qb4 15. Bxf8 Rxf8 16. h3 Bh5 {0-1 (47) Bluebaum,M (2674)-Demchenko,A (2597) Reykjavik 2021}) 11. Bf4 {[%emt 0:06:18] White is more active.} (11. Qb3 $1 $16) 11... Nxd5 {[%emt 0:06:05]} 12. Bxd5 {[%emt 0:03:30] Hoping for Qb3.} O-O {[%emt 0:03:51][%cal Oc6d4]} 13. Qb3 {[%emt 0:23:08]} (13. h3 $5 {[%cal Rh3g4]} Bxf3 14. Qxf3 $14 (14. gxf3 Qb6 $11)) 13... Qc8 {[%emt 0:11:03]} 14. a3 {[%emt 0:15:59]} b5 {[%emt 0:17:41]} 15. Rac1 {[%emt 0:02:25]} Be6 {[%emt 0:10:58]} 16. Rfd1 {[%emt 0:03:13]} h6 {[%emt 0:04:19]} (16... c4 $11 17. Qc2 Bf6) 17. h3 {[%emt 0:05:00]} (17. Ne5 $14 {is superior.}) 17... Rd8 {[%emt 0:02:21]} 18. Qe3 {[%emt 0:01:05]} Ra7 {[%emt 0:03:00]} 19. Rd2 {[%emt 0:04:11]} Rad7 {[%emt 0:02:34][%cal Re6d5]} 20. Rcd1 {[%emt 0:00:37]} Bf8 {[%emt 0:01:55]} 21. b3 {[%emt 0:04:01]} ({White should play} 21. g4 $11) 21... Bxd5 $1 $15 {[%emt 0:07:40]} 22. Rxd5 {[%emt 0:03:26]} Rxd5 {[%emt 0:00:14]} 23. exd5 {[%emt 0:04:04]} (23. Rxd5 $142 Rxd5 24. exd5) 23... Ne7 $1 $17 {[%emt 0:01:16]} 24. Qe5 {[%emt 0:00:22]} Qd7 {[%emt 0:05:57]} 25. Bc1 {[%emt 0:02:08]} Nxd5 {[%emt 0:01:24]} 26. Bb2 {[%emt 0:00:07]} Qe6 {[%emt 0:02:48]} 27. Rd2 {[%emt 0:00:19]} (27. Qxe6 $17 fxe6 28. Ne5) 27... a5 {[%emt 0:02:45]} (27... Qxe5 $1 $19 {and Black stays clearly on top.} 28. Nxe5 Rd6) 28. h4 {[%emt 0:00:42]} (28. a4 $142) 28... b4 {[%emt 0:00:32]} (28... Qxe5 $142 29. Nxe5 Rd6) 29. a4 {[%emt 0:00:26]} Qc6 {[%emt 0:00:40]} 30. Qe4 {[%emt 0:00:58]} Ne7 {[%emt 0:00:21]} 31. Qxc6 $15 {[%emt 0:00:31]} Nxc6 {[%emt 0:00:05]} 32. Rxd8 {[%emt 0:00:10]} Nxd8 {[%emt 0:00:05][%mdl 4096] Endgame KBN-KBN} 33. Ne5 {[%emt 0:00:37]} f6 {[%emt 0:00:36]} 34. Nc4 {[%emt 0:00:23]} Nc6 {[%emt 0:00:15]} 35. Kf1 {[%emt 0:00:33] [#]} (35. h5 $11) 35... Kf7 {[%emt 0:00:28]} (35... h5 $1 $17) 36. Ke2 {[%emt 0:00:04]} (36. h5 $1 $11) 36... Ke6 {[%emt 0:00:26]} (36... h5 $15) 37. Kd3 {[%emt 0:00:32]} Bd6 {[%emt 0:00:29] Black wants to play ...Be5.} 38. h5 {[%emt 0:01:06]} Be5 {[%emt 0:00:54]} 39. Bc1 {[%emt 0:00:11]} Bd4 {[%emt 0:01:22]} 40. Bf4 {[%emt 0:00:00]} Bxf2 {[%emt 0:00:00]} 41. Bc7 {[%emt 0:01:56]} Kd7 {[%emt 0:15:07]} 42. Bf4 {[%emt 0:09:14]} Bd4 {[%emt 0:08:37]} 43. Ke4 {[%emt 0:06:14] Prevents Be5.} Ke6 {[%emt 0:01:04]} 44. Bc7 {[%emt 0:03:32]} f5+ {[%emt 0:03:15]} 45. Kd3 $1 {[%emt 0:00:20]} Be5 {[%emt 0:03:45]} 46. Bxa5 {[%emt 0:01:35] Black must now prevent Bb6.} Nd4 {[%emt 0:01:32]} (46... Kd7 $11 {remains equal.}) 47. Nxe5 $16 {[%emt 0:04:00]} Kxe5 {[%emt 0:00:05] KB-KN} 48. Kc4 {[%emt 0:00:01]} Ne6 {[%emt 0:01:06]} 49. Bb6 {[%emt 0:00:06][%mdl 1024] White has strong compensation.} Kd6 {[%emt 0:00:19]} 50. Ba7 {[%emt 0:02:33] aiming for Bb8+.} Kc6 {[%emt 0:00:25] [#]} 51. Bb8 $2 {[%emt 0:01:16] Against Nf4} (51. a5 $1 $18) 51... Nf8 $1 $11 {[%emt 0:00:56]} 52. a5 {[%emt 0:05:24][%cal Ba4a5,Ba5a6,Ba6a7][%mdl 32]} Nd7 {[%emt 0:00:54] [#]} 53. a6 $1 {[%emt 0:00:41]} Nb6+ {[%emt 0:01:03]} (53... Nxb8 $2 54. a7 Kb7 55. axb8=Q+ Kxb8 56. Kxc5 $18) (53... Kb6 54. a7) 54. Kd3 {[%emt 0:00:01] Strongly threatening Be5.} Kd5 $2 {[%emt 0:00:35][%mdl 8192] Inhibits Be5.} (54... Nd7 $1 $11) 55. a7 $18 {[%emt 0:00:36]} Na8 {[%emt 0:00:17]} (55... Kc6 $142 56. Be5 Kb7 57. Bxg7 Nd5) 56. Bf4 {[%emt 0:00:41] And now Bc1 would win.} Nb6 {[%emt 0:00:18]} 57. Bc7 {[%emt 0:00:06]} Na8 {[%emt 0:00:07]} 58. Bd8 {[%emt 0:01:07] Be7 is the strong threat.} f4 $2 {[%emt 0:00:26]} (58... Kc6 59. Kc4 Kd7) 59. Ba5 {[%emt 0:00:21]} Kc6 {[%emt 0:01:11]} (59... Kd6 $142 60. Kc4 Kc6) 60. Kc4 {[%emt 0:00:13]} Kb7 {[%emt 0:00:31]} 61. Kxc5 {[%emt 0:00:24]} Kxa7 {[%emt 0:00:04]} 62. Kxb4 {[%emt 0:00:09]} (62. Kc6 $142 Ka6 63. Bxb4 Nb6 64. Bf8 Nc8 65. Kd7 Na7 66. Bxg7 Nb5 67. Bxh6) 62... Kb7 {[%emt 0:00:57]} 63. Kc5 {[%emt 0:00:13]} Nc7 {[%emt 0:00:40]} 64. Bxc7 {[%emt 0:00:11]} Kxc7 {[%emt 0:00:05]} 65. Kd5 {[%emt 0:00:08] Quite a comeback for White.  Weighted Error Value: White=0.35/Black=0.51} 1-0